[Event "Netanya Open 2019"]
[Site "Netanya"]
[Date "2019.06.26"]
[Round "4.28"]
[White "Sokolovsky, Yahli"]
[Black "Globus, Or"]
[Result "1/2-1/2"]
[ECO "B10"]
[WhiteElo "2074"]
[BlackElo "2352"]
[Annotator "NA"]
[PlyCount "119"]
[EventDate "2019.06.23"]
[EventType "swiss"]
[EventCountry "ISR"]
[SourceTitle "playchess.com"]
[Source "ChessBase"]
[SourceQuality "1"]
[TimeControl "40/5400+30:1800+30"]

1. e4 {[%emt 0:00:00]} c6 {[%emt 0:00:00]} 2. Nf3 {[%emt 0:01:39]} d5 {[%emt 0:00:20]} 3. exd5 {[%emt 0:00:09]} cxd5 {[%emt 0:00:05]} 4. Ne5 {[%emt 0:00:13]} Nc6 {[%emt 0:03:48]} 5. d4 {[%emt 0:00:16]} Qb6 {[%emt 0:02:11]} 6. Nxc6 {[%emt 0:15:39]} bxc6 {[%emt 0:02:21]} 7. c3 {[%emt 0:02:44]} Ba6 {[%emt 0:07:31]} 8. Bxa6 {[%emt 0:13:04]} Qxa6 {[%emt 0:00:17]} 9. Nd2 {[%emt 0:00:57]} Nf6 {[%emt 0:04:53]} 10. Nb3 {[%emt 0:06:23]} e6 {[%emt 0:02:59]} 11. Bf4 {[%emt 0:02:13]} Qb6 {[%emt 0:12:49]} 12. O-O {[%emt 0:08:52]} Be7 {[%emt 0:01:03]} 13. Qf3 {[%emt 0:03:43]} O-O {[%emt 0:02:33]} 14. Rfb1 {[%emt 0:02:43]} Rfc8 {[%emt 0:07:27]} 15. Bg5 {[%emt 0:02:07]} Rc7 {[%emt 0:08:18]} 16. Nc5 {[%emt 0:03:23]} Ne8 {[%emt 0:05:09]} 17. Bf4 {[%emt 0:04:32]} Bd6 {[%emt 0:02:53]} 18. b4 {[%emt 0:01:47]} Re7 {[%emt 0:02:00]} 19. a4 {[%emt 0:06:24]} Qc7 {[%emt 0:03:52]} 20. Na6 {[%emt 0:03:17]} Qc8 {[%emt 0:04:00]} 21. Nc5 {[%emt 0:01:03]} Qc7 {[%emt 0:01:19]} 22. Bg3 {[%emt 0:03:12]} Bxg3 {[%emt 0:02:29]} 23. hxg3 {[%emt 0:00:10]} Nd6 {[%emt 0:04:01]} 24. Qd3 {[%emt 0:02:44]} e5 {[%emt 0:02:40]} 25. dxe5 {[%emt 0:07:05]} Rxe5 {[%emt 0:00:19]} 26. Re1 {[%emt 0:01:49]} Nc4 {[%emt 0:02:34]} 27. f4 {[%emt 0:01:50]} Re7 {[%emt 0:01:17]} 28. Re2 {[%emt 0:00:37]} Rae8 {[%emt 0:01:42]} 29. Rae1 {[%emt 0:00:11]} g6 {[%emt 0:01:51]} 30. Kf2 {[%emt 0:00:41]} Qd6 {[%emt 0:01:49]} 31. Rxe7 {[%emt 0:02:53]} Rxe7 {[%emt 0:00:05]} 32. Rxe7 {[%emt 0:00:39]} Qxe7 {[%emt 0:00:04]} 33. Qe2 {[%emt 0:00:26]} Kf8 {[%emt 0:02:44]} 34. Qxe7+ {[%emt 0:01:28]} Kxe7 {[%emt 0:00:04]} 35. Ke2 {[%emt 0:00:26]} h5 {[%emt 0:01:03]} 36. Kf3 {[%emt 0:02:02]} Nd6 {[%emt 0:03:25]} 37. g4 {[%emt 0:00:29]} hxg4+ {[%emt 0:00:29]} 38. Kxg4 {[%emt 0:00:02]} Ne4 {[%emt 0:01:00]} 39. Nxe4 {[%emt 0:00:53]} dxe4 {[%emt 0:00:04]} 40. c4 {[%emt 0:00:39]} Kd6 {[%emt 0:05:36]} 41. Kg3 {[%emt 0:18:16]} Kc7 {[%emt 0:01:26]} 42. a5 {[%emt 0:03:39]} Kb7 {[%emt 0:05:28]} 43. b5 {[%emt 0:02:49]} Kc7 {[%emt 0:00:07]} 44. Kf2 {[%emt 0:01:01]} f5 {[%emt 0:00:54]} 45. Ke3 {[%emt 0:00:25]} Kd8 {[%emt 0:00:53]} 46. Kd4 {[%emt 0:01:33]} Kd7 {[%emt 0:00:09]} 47. Ke3 {[%emt 0:01:19]} Kc7 {[%emt 0:00:28]} 48. Kd4 {[%emt 0:00:40]} Kb8 {[%emt 0:01:11]} 49. Ke3 {[%emt 0:00:33]} Kb7 {[%emt 0:00:18]} 50. Kd4 {[%emt 0:00:14]} Kc7 {[%emt 0:00:12]} 51. Ke3 {[%emt 0:00:26]} Kd7 {[%emt 0:00:55]} 52. Kd4 {[%emt 0:00:19]} cxb5 {[%emt 0:01:39]} 53. cxb5 {[%emt 0:00:10]} Kd6 {[%emt 0:00:05]} 54. Kc4 {[%emt 0:00:13]} e3 {[%emt 0:02:53]} 55. Kd3 {[%emt 0:00:09]} Kc5 {[%emt 0:00:02]} 56. b6 {[%emt 0:00:16]} axb6 {[%emt 0:00:03]} 57. axb6 {[%emt 0:00:27]} Kxb6 {[%emt 0:00:03]} 58. Kxe3 {[%emt 0:00:33]} Kc5 {[%emt 0:00:02]} 59. Kd3 {[%emt 0:00:26]} Kd5 {[%emt 0:00:03]} 60. g3 {[%emt 0:00:06]} 1/2-1/2

[Event "Netanya Open 2019"]
[Site "Netanya"]
[Date "2019.06.26"]
[Round "4.29"]
[White "Sivan, Yaacov"]
[Black "Kushnir, Arie"]
[Result "1/2-1/2"]
[WhiteElo "2319"]
[BlackElo "1662"]
[PlyCount "56"]
[EventDate "2019.06.23"]
[EventType "swiss"]
[EventRounds "9"]
[EventCountry "ISR"]
[TimeControl "40/5400+30:1800+30"]

1. e4 e5 2. Nf3 Nf6 3. d4 Nxe4 4. Bd3 d5 5. dxe5 Be7 6. O-O O-O 7. c4 Bf5 8. Qe2 Nc6 9. Rd1 Nb4 10. Bxe4 Bxe4 11. Nc3 Bxf3 12. Qxf3 d4 13. Nd5 Nc6 14. Bf4 Bg5 15. Bg3 Bh4 16. Bf4 Bg5 17. Rd3 Re8 18. Re1 Bxf4 19. Qxf4 Qd6 20. Kf1 Rxe5 21. Rxe5 Nxe5 22. Rxd4 Re8 23. Qd2 Nxc4 24. Rxc4 c6 25. g3 cxd5 26. Rb4 h6 27. Kg2 Qc6 28. Rd4 Rd8 1/2-1/2

[Event "Netanya Open 2019"]
[Site "Netanya"]
[Date "2019.06.26"]
[Round "4.30"]
[White "Kinberg, Ofer"]
[Black "Goikhman, Valentin"]
[Result "0-1"]
[WhiteElo "1962"]
[BlackElo "2320"]
[PlyCount "54"]
[EventDate "2019.06.23"]
[EventType "swiss"]
[EventRounds "9"]
[EventCountry "ISR"]
[TimeControl "40/5400+30:1800+30"]

1. e4 c5 2. Nf3 d6 3. d4 cxd4 4. Nxd4 Nf6 5. Nc3 a6 6. Be2 e5 7. Nf3 Be7 8. Bg5 Be6 9. Bxf6 Bxf6 10. Qd2 O-O 11. O-O-O Be7 12. Nd5 Bxd5 13. Qxd5 Qc7 14. Kb1 Nd7 15. Nd2 Rac8 16. Qd3 Nc5 17. Qf3 Ne6 18. Bc4 b5 19. Bb3 a5 20. c3 a4 21. Bd5 a3 22. b3 Nd4 23. Qd3 Qxc3 24. Qxc3 Rxc3 25. Nf1 Rc2 26. Ne3 Rb2+ 27. Ka1 Bg5 0-1

[Event "Netanya Open 2019"]
[Site "Netanya"]
[Date "2019.06.26"]
[Round "4.31"]
[White "Krayz, Alexander"]
[Black "Zalkind, Konstantin"]
[Result "1-0"]
[WhiteElo "2374"]
[BlackElo "2116"]
[PlyCount "157"]
[EventDate "2019.06.23"]
[EventType "swiss"]
[EventRounds "9"]
[EventCountry "ISR"]
[TimeControl "40/5400+30:1800+30"]

1. e4 c5 2. Nf3 g6 3. d4 Bg7 4. c3 cxd4 5. cxd4 d5 6. e5 Nh6 7. Nc3 O-O 8. Be2 Nc6 9. h3 f6 10. exf6 exf6 11. Bf4 Nf7 12. O-O a6 13. Re1 Kh8 14. Qb3 f5 15. Rad1 g5 16. Be5 Nfxe5 17. Nxe5 Nxd4 18. Rxd4 Bxe5 19. Rxd5 Qf6 20. Bc4 Bxc3 21. Qxc3 Qxc3 22. bxc3 b5 23. Bd3 Ra7 24. Rc5 Raf7 25. Ree5 Kg7 26. c4 b4 27. Ra5 h6 28. Red5 Rc7 29. c5 Rf6 30. Kf1 f4 31. Rd4 Rfc6 32. Rc4 Be6 33. Rxb4 Rxc5 34. Rxa6 f3 35. gxf3 Bxh3+ 36. Kg1 Bf5 37. Be4 Bxe4 38. fxe4 Rc2 39. Rbb6 Re2 40. Rg6+ Kf7 41. Raf6+ Ke7 42. Re6+ Kf7 43. Rxh6 Rxa2 44. Rhf6+ Kg8 45. Kg2 Rg7 46. Rg6 Ra3 47. f3 Kh7 48. Rxg7+ Kxg7 49. Kg3 Ra1 50. Kg4 Rg1+ 51. Kf5 Rg3 52. Rg6+ Kf7 53. Rf6+ Ke7 54. Ke5 Rh3 55. Rf5 Rg3 56. Kd5 Rg1 57. Ke5 Rg2 58. Rf6 Rg3 59. Rf5 Rg2 60. Kd4 Rg3 61. e5 Rg1 62. Rf6 Re1 63. Rg6 Rg1 64. Ke4 Kf7 65. Rf6+ Ke7 66. Kf5 Rg3 67. Kg6 Rg1 68. Kf5 Rg3 69. Ke4 Rg1 70. Rg6 Kf7 71. Kf5 Rg3 72. e6+ Ke7 73. Rg7+ Ke8 74. Ke4 Rg1 75. f4 Re1+ 76. Kf5 gxf4 77. Kf6 Kd8 78. Rd7+ Ke8 79. Ra7 1-0

[Event "Netanya Open 2019"]
[Site "Netanya"]
[Date "2019.06.26"]
[Round "4.32"]
[White "Rozen, Eytan"]
[Black "Yaniv, Yuval"]
[Result "1/2-1/2"]
[WhiteElo "2317"]
[BlackElo "2132"]
[PlyCount "101"]
[EventDate "2019.06.23"]
[EventType "swiss"]
[EventRounds "9"]
[EventCountry "ISR"]
[TimeControl "40/5400+30:1800+30"]

1. c4 Nf6 2. Nc3 g6 3. g3 Bg7 4. Bg2 O-O 5. Nf3 d6 6. O-O e5 7. d4 Nc6 8. dxe5 dxe5 9. Bg5 Be6 10. Qa4 Qc8 11. Rfd1 Nd7 12. Nd5 e4 13. Nd2 f5 14. Rab1 h6 15. Be3 Kh7 16. f3 exf3 17. Nxf3 Re8 18. Bf4 Nce5 19. Qc2 c6 20. Nxe5 Nxe5 21. Bxe5 Bxe5 22. Nf4 Qc7 23. Nxe6 Rxe6 24. Rd2 Rae8 25. Rbd1 R8e7 26. Bf3 Bg7 27. Kh1 Qe5 28. b3 Qc5 29. Kg2 Qe3 30. Rd7 c5 31. Qd2 Bd4 32. Qxe3 Rxe3 33. Rxe7+ Rxe7 34. b4 b6 35. bxc5 Bxc5 36. h3 h5 37. a4 a5 38. Rd5 Kg7 39. Rd8 Re3 40. Rd3 Kf6 41. Rxe3 Bxe3 42. g4 fxg4 43. hxg4 h4 44. Be4 g5 45. Kh3 Ke5 46. Bc6 Kd4 47. Bb5 Bf4 48. e3+ Kxe3 49. Be8 Kd4 50. Bd7 Kxc4 51. Be8 1/2-1/2

[Event "Netanya Open 2019"]
[Site "Netanya"]
[Date "2019.06.26"]
[Round "4.33"]
[White "Hasidovsky, Michael"]
[Black "Friedland, Moshe"]
[Result "0-1"]
[WhiteElo "2135"]
[BlackElo "2315"]
[PlyCount "84"]
[EventDate "2019.06.23"]
[EventType "swiss"]
[EventRounds "9"]
[EventCountry "ISR"]
[TimeControl "40/5400+30:1800+30"]

1. Nf3 Nf6 2. c4 c6 3. d4 d5 4. cxd5 cxd5 5. Nc3 Nc6 6. Bf4 a6 7. e3 Bg4 8. Be2 e6 9. h3 Bxf3 10. Bxf3 Bd6 11. Bxd6 Qxd6 12. O-O O-O 13. Rc1 Rfc8 14. Qd2 Rc7 15. Na4 Nd7 16. a3 Rac8 17. Be2 Na5 18. Rxc7 Qxc7 19. Qc3 Qxc3 20. Nxc3 Nb6 21. Re1 Kf8 22. Bd3 Nbc4 23. Nd1 Nd6 24. Nc3 Nac4 25. Nd1 b5 26. Re2 a5 27. Rc2 Ke7 28. f3 Ra8 29. Kf2 b4 30. a4 b3 31. Rc3 Rb8 32. Ke2 Rb4 33. e4 Kd7 34. e5 Nc8 35. Bxc4 dxc4 36. Rc1 Nb6 37. Ne3 Rxa4 38. Kd2 Kc6 39. g4 Kb5 40. Kc3 Ra2 41. Nd1 Nd5+ 42. Kd2 Kb4 0-1

[Event "Netanya Open 2019"]
[Site "Netanya"]
[Date "2019.06.26"]
[Round "4.34"]
[White "Poleg, Dan"]
[Black "Parnes, Nadav"]
[Result "1-0"]
[WhiteElo "2268"]
[BlackElo "2072"]
[PlyCount "55"]
[EventDate "2019.06.23"]
[EventType "swiss"]
[EventRounds "9"]
[EventCountry "ISR"]
[TimeControl "40/5400+30:1800+30"]

1. d4 Nf6 2. Nf3 g6 3. Nbd2 Bg7 4. e4 d6 5. Bb5+ c6 6. Bd3 O-O 7. O-O Qc7 8. c3 Bg4 9. h3 Bxf3 10. Nxf3 e5 11. Qe2 Nbd7 12. a4 Rfe8 13. dxe5 dxe5 14. Be3 Bf8 15. Bc4 Bd6 16. Ng5 Re7 17. Rfd1 h6 18. Nxf7 Rxf7 19. Bxh6 Bf8 20. Bxf7+ Kxf7 21. Qc4+ Ke7 22. Bg5 Bg7 23. Rd3 c5 24. a5 Nf8 25. Rad1 Ne6 26. Rd7+ Qxd7 27. Bxf6+ Bxf6 28. Rxd7+ 1-0

[Event "Netanya Open 2019"]
[Site "Netanya"]
[Date "2019.06.26"]
[Round "4.35"]
[White "Slobodiansky, Steven"]
[Black "Aleksikov, Oleksandr"]
[Result "0-1"]
[WhiteElo "2088"]
[BlackElo "2234"]
[PlyCount "118"]
[EventDate "2019.06.23"]
[EventType "swiss"]
[EventRounds "9"]
[EventCountry "ISR"]
[TimeControl "40/5400+30:1800+30"]

1. e4 d6 2. d4 Nf6 3. Nc3 g6 4. Bc4 Bg7 5. Nf3 O-O 6. Qe2 c6 7. Bb3 d5 8. Bg5 Be6 9. O-O Na6 10. e5 Nd7 11. Qe3 Nc7 12. Ne2 Bg4 13. h3 Bxf3 14. Qxf3 f6 15. exf6 exf6 16. Be3 a5 17. a4 Nb6 18. Nf4 Re8 19. c3 Qd7 20. Bc2 Ne6 21. Nxe6 Rxe6 22. b3 Bf8 23. h4 Bd6 24. h5 f5 25. c4 Bc7 26. c5 Nc8 27. Bf4 Bxf4 28. Qxf4 Qe7 29. Qd2 Re2 30. Qc3 Qf6 31. hxg6 hxg6 32. Rfe1 Rxe1+ 33. Rxe1 Ne7 34. Re5 Kf7 35. Qf3 Rh8 36. g4 fxg4 37. Qxg4 Rh4 38. Qg3 Rxd4 39. Qe3 Rg4+ 40. Kf1 Rh4 41. Qg3 Qf4 42. Qxf4+ Rxf4 43. Re3 Nf5 44. Bxf5 gxf5 45. Rh3 Rb4 46. Ke2 Ke6 47. Kd2 Ke5 48. Kc2 Rf4 49. Rh7 Rxf2+ 50. Kd3 Rf3+ 51. Kc2 Kd4 52. Rxb7 Rf2+ 53. Kb1 Kc3 54. Rb6 Rb2+ 55. Kc1 d4 56. Rxc6 d3 57. Rd6 d2+ 58. Kd1 Rb1+ 59. Ke2 Re1+ 0-1

[Event "Netanya Open 2019"]
[Site "Netanya"]
[Date "2019.06.26"]
[Round "4.36"]
[White "Tsyn, Igor"]
[Black "Axelrod, Arie"]
[Result "1-0"]
[WhiteElo "2002"]
[BlackElo "2224"]
[PlyCount "111"]
[EventDate "2019.06.23"]
[EventType "swiss"]
[EventRounds "9"]
[EventCountry "ISR"]
[TimeControl "40/5400+30:1800+30"]

1. e4 c5 2. Nf3 e6 3. d4 cxd4 4. Nxd4 Bc5 5. Nb3 Be7 6. Bd3 d6 7. O-O Nf6 8. f4 Nc6 9. Nc3 O-O 10. Kh1 a6 11. Qf3 Qc7 12. Be3 b5 13. Rae1 Bb7 14. Qh3 Nb4 15. Nd4 d5 16. e5 Ne4 17. Nce2 Nxd3 18. cxd3 Nc5 19. Bd2 Bc8 20. b4 Na4 21. Rc1 Qb7 22. Nc6 Bd8 23. Nxd8 Rxd8 24. Qh4 Re8 25. Rf3 Qe7 26. Qh5 g6 27. Qh6 Qf8 28. Qxf8+ Kxf8 29. Be3 Bb7 30. Bd4 Rec8 31. Rff1 Ke7 32. Rxc8 Bxc8 33. Nc1 a5 34. a3 axb4 35. axb4 Bd7 36. Nb3 Rc8 37. Rc1 Rxc1+ 38. Nxc1 Kd8 39. Kg1 Kc7 40. Nb3 Nb6 41. Bxb6+ Kxb6 42. Nd4 Kc7 43. Kf2 Be8 44. Ke3 Kb6 45. Nc2 Bc6 46. Kd4 Bd7 47. Ne3 h5 48. Nf1 Kc6 49. Nd2 Kb6 50. Nf3 Be8 51. Ng5 Kc6 52. Nh7 Kb6 53. Nf6 Bc6 54. g3 Kc7 55. Kc5 d4 56. Nh7 1-0

[Event "Netanya Open 2019"]
[Site "Netanya"]
[Date "2019.06.26"]
[Round "4.37"]
[White "Parligras, Cosmin"]
[Black "Cohen, Elad"]
[Result "1-0"]
[WhiteElo "2198"]
[BlackElo "1999"]
[PlyCount "123"]
[EventDate "2019.06.23"]
[EventType "swiss"]
[EventRounds "9"]
[EventCountry "ISR"]
[TimeControl "40/5400+30:1800+30"]

1. Nf3 Nf6 2. c4 e6 3. d4 Bb4+ 4. Nbd2 O-O 5. e3 d6 6. Qc2 Re8 7. Be2 e5 8. d5 a5 9. a3 Bxd2+ 10. Nxd2 a4 11. O-O Nbd7 12. b4 axb3 13. Nxb3 b6 14. a4 Nc5 15. Nxc5 bxc5 16. Bd2 Ba6 17. e4 Qe7 18. Ra3 Nd7 19. Rg3 Nf8 20. h4 Ng6 21. Bg5 f6 22. h5 fxg5 23. hxg6 h6 24. Bg4 Bc8 25. Bxc8 Rexc8 26. Rf3 Rf8 27. Rxf8+ Qxf8 28. Rb1 Qe8 29. Rb7 Qxg6 30. Rxc7 Qe8 31. Rc6 Qb8 32. Qd1 Qb4 33. Rxd6 Qxc4 34. Qg4 Qc1+ 35. Kh2 Qf4+ 36. Qxf4 gxf4 37. Re6 Rxa4 38. Rxe5 Rd4 39. f3 Kf7 40. Re6 c4 41. Rc6 Ke7 42. Kh3 h5 43. Kh4 Rd2 44. Kg5 Rxg2+ 45. Kxf4 h4 46. Rxc4 h3 47. Rc8 h2 48. Rh8 Kd6 49. Rh7 g5+ 50. Kf5 Rf2 51. Rh6+ Kc5 52. Kxg5 Rxf3 53. Rxh2 Kd4 54. d6 Ke5 55. Rd2 Rg3+ 56. Kh5 Rg8 57. d7 Rd8 58. Kg6 Ke6 59. Kg7 Ke7 60. Rd1 Ke6 61. e5 Ke7 62. Rd6 1-0

[Event "Netanya Open 2019"]
[Site "Netanya"]
[Date "2019.06.26"]
[Round "4.38"]
[White "Karp, Michael"]
[Black "Sherman, Reem"]
[Result "1-0"]
[WhiteElo "2199"]
[BlackElo "1951"]
[PlyCount "69"]
[EventDate "2019.06.23"]
[EventType "swiss"]
[EventRounds "9"]
[EventCountry "ISR"]
[TimeControl "40/5400+30:1800+30"]

1. Nf3 Nf6 2. g3 e6 3. Bg2 Be7 4. O-O O-O 5. d4 d5 6. c4 c6 7. Qc2 Nbd7 8. Nbd2 b6 9. e4 Bb7 10. b3 Rc8 11. Bb2 c5 12. exd5 exd5 13. Rad1 Ba6 14. Rfe1 Bd6 15. Ne5 cxd4 16. Nxd7 Nxd7 17. Bxd4 dxc4 18. bxc4 Bc5 19. Bc3 Qc7 20. Qb2 g6 21. Bd5 Rfe8 22. Ne4 Bf8 23. c5 Bxc5 24. Ng5 Rxe1+ 25. Rxe1 Rf8 26. Bh8 Bxf2+ 27. Kxf2 Qc5+ 28. Re3 Nf6 29. Qxf6 Qc2+ 30. Kf3 Qd1+ 31. Kf4 Qf1+ 32. Nf3 g5+ 33. Qxg5+ Kxh8 34. Qf6+ Kg8 35. Bxf7+ 1-0

[Event "Netanya Open 2019"]
[Site "Netanya"]
[Date "2019.06.26"]
[Round "4.39"]
[White "Gleizer, Mark"]
[Black "Friedland, Eldar"]
[Result "1-0"]
[WhiteElo "2180"]
[BlackElo "1939"]
[PlyCount "85"]
[EventDate "2019.06.23"]
[EventType "swiss"]
[EventRounds "9"]
[EventCountry "ISR"]
[TimeControl "40/5400+30:1800+30"]

1. d4 Nf6 2. Nf3 g6 3. Nbd2 d5 4. e3 Bg7 5. b4 O-O 6. a4 a5 7. b5 c5 8. bxc6 Nxc6 9. Ba3 Re8 10. Bb5 Bd7 11. c3 Na7 12. Bxd7 Nxd7 13. Qb3 Qc7 14. O-O e6 15. c4 Nb6 16. cxd5 Nxd5 17. Rfc1 Qd7 18. Nc4 b5 19. axb5 Qxb5 20. Rab1 Qxb3 21. Rxb3 a4 22. Rb7 Reb8 23. Rcb1 Rxb7 24. Rxb7 Bf8 25. Bxf8 Kxf8 26. e4 Rc8 27. Nfd2 Rc7 28. Rb8+ Kg7 29. exd5 exd5 30. Na3 Rc1+ 31. Nf1 Ra1 32. Ra8 Rxa3 33. Rxa7 Ra1 34. g3 a3 35. Kg2 h5 36. Ne3 a2 37. h4 Rb1 38. Rxa2 Rb5 39. Kf3 Kh6 40. Kf4 f6 41. Ra6 Rb4 42. Rxf6 Rxd4+ 43. Ke5 1-0

[Event "Netanya Open 2019"]
[Site "Netanya"]
[Date "2019.06.26"]
[Round "4.40"]
[White "Smoliar, Klim"]
[Black "Aizenberg, Benny"]
[Result "0-1"]
[ECO "B30"]
[WhiteElo "1871"]
[BlackElo "2153"]
[PlyCount "68"]
[EventDate "2019.06.23"]
[EventType "swiss"]
[EventRounds "9"]
[EventCountry "ISR"]
[TimeControl "40/5400+30:1800+30"]

{[%evp 0,14,19,31,72,53,83,41,19,18,22,-16,-20,-12,32,15,51]} 1. e4 c5 2. Nf3 g6 3. Nc3 Nc6 4. Bb5 Bg7 5. Bxc6 bxc6 6. d3 e6 7. Be3 Rb8 8. Bxc5 Rxb2 9. Bd4 Bxd4 10. Nxd4 Rb8 11. O-O Ne7 12. Qd2 O-O 13. f4 d5 14. Rab1 Ba6 15. Rxb8 Qxb8 16. f5 Qb4 17. f6 Qxd4+ 18. Kh1 Nf5 19. exf5 Qxf6 20. Na4 Rb8 21. Nc5 Bc8 22. d4 exf5 23. Qf4 Rb2 24. Qc7 Be6 25. c3 Re2 26. Qxa7 f4 27. Qb8+ Kg7 28. Nxe6+ Rxe6 29. Qb2 Qf5 30. a4 Qd3 31. Qa1 Re2 32. a5 Qe4 33. Rg1 f3 34. h3 fxg2+ 0-1

[Event "Netanya Open 2019"]
[Site "Netanya"]
[Date "2019.06.26"]
[Round "4.41"]
[White "Kochavi, Ori"]
[Black "Sheinkman, Lidan"]
[Result "1-0"]
[WhiteElo "2151"]
[BlackElo "1863"]
[PlyCount "53"]
[EventDate "2019.06.23"]
[EventType "swiss"]
[EventRounds "9"]
[EventCountry "ISR"]
[TimeControl "40/5400+30:1800+30"]

1. e4 e6 2. d4 d5 3. Nd2 h6 4. Ngf3 Nf6 5. e5 Nfd7 6. Bd3 c5 7. c3 Nc6 8. O-O g5 9. b4 cxd4 10. cxd4 Bxb4 11. Nb3 a5 12. Be3 a4 13. Nbd2 Nb6 14. a3 Bc3 15. Rb1 Na5 16. Bb5+ Bd7 17. Bxd7+ Nxd7 18. Ne1 Nc6 19. Nc2 b6 20. f4 Qe7 21. f5 O-O-O 22. f6 Qf8 23. Nb4 Bxb4 24. Qxa4 Kb7 25. Rfc1 Ndb8 26. axb4 Qe8 27. Ra1 1-0

[Event "Netanya Open 2019"]
[Site "Netanya"]
[Date "2019.06.26"]
[Round "4.42"]
[White "Levi, Netanel"]
[Black "Gerchikov, Pavel"]
[Result "1-0"]
[WhiteElo "2138"]
[BlackElo "1911"]
[PlyCount "109"]
[EventDate "2019.06.23"]
[EventType "swiss"]
[EventRounds "9"]
[EventCountry "ISR"]
[TimeControl "40/5400+30:1800+30"]

1. e4 d5 2. exd5 Qxd5 3. Nc3 Qd6 4. d4 Nf6 5. Nf3 a6 6. Bd3 Nc6 7. h3 g6 8. Ne4 Nxe4 9. Bxe4 Bg7 10. c3 f5 11. Bxc6+ Qxc6 12. O-O Be6 13. Re1 Bd5 14. Bf4 Bxf3 15. Qxf3 Qxf3 16. gxf3 c6 17. Bg5 Bf8 18. Re6 h6 19. Bd2 Kf7 20. Rae1 Rd8 21. c4 Rd7 22. Bb4 Rg8 23. Bc5 g5 24. Kg2 Rg6 25. R6e5 e6 26. Bxf8 Kxf8 27. Rxe6 Rxe6 28. Rxe6 Rxd4 29. b3 Rd2 30. Rxh6 Rxa2 31. Rf6+ Kg7 32. Rxf5 Kg6 33. Re5 Rb2 34. Re3 Kf5 35. Kg3 a5 36. Rd3 b6 37. Rd6 Rxb3 38. Rxc6 a4 39. Rc8 a3 40. Ra8 Rc3 41. Ra6 Rb3 42. Ra4 Rc3 43. Rb4 Ke5 44. Rxb6 Rxc4 45. Ra6 Rc3 46. Kg4 Rb3 47. Ra5+ Kf6 48. f4 gxf4 49. f3 Ke6 50. Kxf4 Kd6 51. h4 Kc6 52. h5 Kb6 53. Ra8 Kb5 54. h6 Rb4+ 55. Kg3 1-0

[Event "Netanya Open 2019"]
[Site "Netanya"]
[Date "2019.06.26"]
[Round "4.43"]
[White "Leib, Daniel"]
[Black "Hoffmann, Yair"]
[Result "0-1"]
[WhiteElo "1897"]
[BlackElo "2175"]
[PlyCount "70"]
[EventDate "2019.06.23"]
[EventType "swiss"]
[EventRounds "9"]
[EventCountry "ISR"]
[TimeControl "40/5400+30:1800+30"]

1. e4 c6 2. d4 d5 3. Nd2 dxe4 4. Nxe4 Nd7 5. Nf3 Ngf6 6. Ng3 e6 7. Bd3 Bd6 8. O-O h6 9. c4 b6 10. b3 Bb7 11. Bb2 O-O 12. Re1 Re8 13. Ne5 Qc7 14. f4 c5 15. Ne4 Nxe4 16. Bxe4 Bxe4 17. Rxe4 cxd4 18. Bxd4 Nc5 19. Re3 f6 20. Nd3 Rad8 21. g3 e5 22. fxe5 fxe5 23. Bb2 e4 24. Nb4 Bf4 25. Qe2 Bxe3+ 26. Qxe3 Nd3 27. Bc3 Nxb4 28. Bxb4 a5 29. Ba3 Rd3 30. Qe2 Qd7 31. Re1 Qd4+ 32. Kh1 Rd2 33. Qh5 Qe5 34. Qg6 Re6 35. Qg4 Rxa2 0-1

[Event "Netanya Open 2019"]
[Site "Netanya"]
[Date "2019.06.26"]
[Round "4.44"]
[White "Tal-Shahar, Liam"]
[Black "Tifferet, Shaked"]
[Result "0-1"]
[WhiteElo "1623"]
[BlackElo "2236"]
[PlyCount "182"]
[EventDate "2019.06.23"]
[EventType "swiss"]
[EventRounds "9"]
[EventCountry "ISR"]
[TimeControl "40/5400+30:1800+30"]

1. e4 e5 2. Nf3 Nc6 3. Bb5 a6 4. Bxc6 dxc6 5. Nc3 f6 6. d4 exd4 7. Qxd4 Qxd4 8. Nxd4 Bd7 9. Bf4 O-O-O 10. O-O-O Ne7 11. Rhe1 g5 12. Be3 Ng6 13. Nce2 h5 14. f4 Bh6 15. fxg5 fxg5 16. Ng3 Nh4 17. Rd2 Rde8 18. Nxh5 Rxe4 19. Nf6 Re7 20. Nxd7 Rxd7 21. g3 Ng6 22. Nf5 Bf8 23. Rxd7 Kxd7 24. Bxg5 Rxh2 25. Nh4 Nh8 26. Bf4 Nf7 27. Nf3 Rf2 28. Ne5+ Nxe5 29. Bxe5 Rg2 30. Bf4 Bd6 31. Rd1 c5 32. c3 b5 33. Rd2 Rg1+ 34. Kc2 Ke6 35. Rf2 c4 36. a3 Bxf4 37. gxf4 Kf5 38. Kd2 Ke4 39. f5 Rg7 40. Kc2 Rf7 41. Rh2 Kxf5 42. Rf2+ Ke6 43. Rh2 Rf6 44. Rh7 Kd6 45. Rh5 Kc6 46. Rg5 Kb6 47. Rg7 Rh6 48. Rf7 Rc6 49. Rf2 Ka5 50. b3 Rh6 51. Kb2 Rh4 52. Rg2 cxb3 53. Kxb3 Kb6 54. Rg6+ c6 55. Rf6 Rc4 56. Rh6 Rg4 57. Rh2 c5 58. Rh6+ Ka5 59. Rh2 Rg3 60. Rf2 Rg6 61. Rh2 c4+ 62. Kb2 Kb6 63. a4 Rg3 64. axb5 axb5 65. Rf2 Ka5 66. Rh2 Ka4 67. Rf2 Rg6 68. Rh2 Rd6 69. Rg2 Rd3 70. Rh2 Ka5 71. Rg2 Kb6 72. Kc2 Kc5 73. Rg5+ Rd5 74. Rg6 Rh5 75. Rg2 Kd5 76. Re2 Re5 77. Rh2 Ke4 78. Rd2 Kf3 79. Rd8 Re2+ 80. Kc1 Ke4 81. Rd4+ Ke5 82. Rd8 Ke4 83. Rd4+ Ke3 84. Rd5 Rh2 85. Rxb5 Kd3 86. Rg5 Re2 87. Rg3+ Re3 88. Rg2 Re1+ 89. Kb2 Re2+ 90. Rxe2 Kxe2 91. Ka3 Kd2 0-1

[Event "Netanya Open 2019"]
[Site "Netanya"]
[Date "2019.06.26"]
[Round "4.45"]
[White "Bilych, Olexiy"]
[Black "Noy, Eyal"]
[Result "1-0"]
[WhiteElo "2187"]
[BlackElo "1858"]
[PlyCount "55"]
[EventDate "2019.06.23"]
[EventType "swiss"]
[EventRounds "9"]
[EventCountry "ISR"]
[TimeControl "40/5400+30:1800+30"]

1. e4 c5 2. Nf3 d6 3. d4 cxd4 4. Nxd4 Nf6 5. Nc3 a6 6. h3 e5 7. Nde2 h5 8. Bg5 Be7 9. Bxf6 Bxf6 10. Nd5 Be6 11. Qd3 Nd7 12. O-O-O Nc5 13. Qf3 Bxd5 14. Rxd5 Qa5 15. Nc3 Be7 16. Bc4 O-O 17. Qxh5 b5 18. Bb3 Qb4 19. Rdd1 Ra7 20. Rhe1 Nxb3+ 21. axb3 Rc8 22. Re3 Qc5 23. Rd2 g6 24. Qg4 Bf8 25. Nd5 b4 26. Qh4 a5 27. Nf6+ Kg7 28. Rf3 1-0

[Event "Netanya Open 2019"]
[Site "Netanya"]
[Date "2019.06.26"]
[Round "4.46"]
[White "Brenner, Moshe"]
[Black "Shetah, Roi"]
[Result "1-0"]
[WhiteElo "2098"]
[BlackElo "1836"]
[PlyCount "71"]
[EventDate "2019.06.23"]
[EventType "swiss"]
[EventRounds "9"]
[EventCountry "ISR"]
[TimeControl "40/5400+30:1800+30"]

1. d4 Nf6 2. c4 e6 3. Nf3 d5 4. g3 Be7 5. Bg2 O-O 6. O-O dxc4 7. Qa4 a6 8. Qxc4 b5 9. Qc2 Bb7 10. Rd1 Qc8 11. Be3 Nbd7 12. Nc3 c5 13. Rac1 c4 14. a3 Bc6 15. Ne1 Nd5 16. Bd2 Nxc3 17. Bxc3 Bxg2 18. Nxg2 a5 19. Qd2 Qa6 20. d5 exd5 21. Qxd5 Nc5 22. Qe5 Ne6 23. Qe4 b4 24. axb4 axb4 25. Be5 Rfc8 26. Ne3 f6 27. Nf5 Bf8 28. Bd6 Ng5 29. Qd5+ Nf7 30. Bxf8 Kxf8 31. Qe4 Re8 32. Qxc4 Qxc4 33. Rxc4 Rxe2 34. Rxb4 Ne5 35. Nd4 Re4 36. Ne6+ 1-0

[Event "Netanya Open 2019"]
[Site "Netanya"]
[Date "2019.06.26"]
[Round "4.47"]
[White "Levin, Guy"]
[Black "Fudim, Ariel"]
[Result "1-0"]
[WhiteElo "2052"]
[BlackElo "1768"]
[PlyCount "97"]
[EventDate "2019.06.23"]
[EventType "swiss"]
[EventRounds "9"]
[EventCountry "ISR"]
[TimeControl "40/5400+30:1800+30"]

1. e4 c5 2. Nc3 g6 3. g3 Bg7 4. Bg2 Nc6 5. d3 d6 6. Be3 e6 7. Qd2 Nge7 8. Bh6 O-O 9. h4 f6 10. Bxg7 Kxg7 11. h5 g5 12. h6+ Kh8 13. Nge2 Nd4 14. Nd1 g4 15. Ne3 Nf3+ 16. Bxf3 gxf3 17. Ng1 d5 18. Nxf3 dxe4 19. dxe4 Qxd2+ 20. Nxd2 Bd7 21. O-O-O Bc6 22. Rh5 b6 23. e5 Be8 24. Rh2 fxe5 25. Ng4 Rf5 26. Re1 Nc6 27. Nc4 Rd8 28. Ngxe5 b5 29. Nxc6 Bxc6 30. Ne5 Bd5 31. f4 Kg8 32. Rh4 Kh8 33. Rh2 Rg8 34. Re3 a5 35. b3 b4 36. c4 bxc3 37. Rxc3 Rc8 38. Rhc2 Rg8 39. Rxc5 Rxg3 40. Rxa5 Rxf4 41. Rc8+ Rg8 42. Rxg8+ Kxg8 43. Ra7 Rf2 44. Rg7+ Kf8 45. Rxh7 Rxa2 46. Rf7+ Ke8 47. h7 Rh2 48. Rg7 Rh1+ 49. Kb2 1-0